Workbook

Sheet 은평구총괄
B1: 장애인 유형별, 등급별 등록 현황 (2018. 11월 말 기준)
B3: 서울특별시 은평구 | V3: (단위 : 명)
B5: 자치구 | C5: 장애유형 | D5: 합계 | G5: 1급 | J5: 2급 | M5: 3급 | P5: 4급 | S5: 5급 | V5: 6급
D6: 계 | E6: 남 | F6: 여 | G6: 계 | H6: 남 | I6: 여 | J6: 계 | K6: 남 | L6: 여 | M6: 계 | N6: 남 | O6: 여 | P6: 계 | Q6: 남 | R6: 여 | S6: 계 | T6: 남 | U6: 여 | V6: 계 | W6: 남 | X6: 여
B7: 은평구 | C7: 합 계 | D7: =SUM(G7,J7,M7,P7,S7,V7) -> 21524 | E7: =SUM(H7,K7,N7,Q7,T7,W7) -> 12622 | F7: =SUM(I7,L7,O7,R7,U7,X7) -> 8902 | G7: =SUM(G8:G22) -> 1878 | H7: =SUM(H8:H22) -> 1196 | I7: =SUM(I8:I22) -> 682 | J7: 2978 | K7: =SUM(K8:K22) -> 1866 | L7: =SUM(L8:L22) -> 1112 | M7: 3509 | N7: =SUM(N8:N22) -> 2184 | O7: =SUM(O8:O22) -> 1325 | P7: 3147 | Q7: =SUM(Q8:Q22) -> 1632 | R7: =SUM(R8:R22) -> 1515 | S7: 4547 | T7: 2403 | U7: 2144 | V7: 5465 | W7: 3341 | X7: 2124
C8: 지체 | D8: 9285 | E8: =SUM(H8,K8,N8,Q8,T8,W8) -> 5139 | F8: =SUM(I8,L8,O8,R8,U8,X8) -> 4146 | G8: 216 | H8: 146 | I8: 70 | J8: 405 | K8: 258 | L8: 147 | M8: 950 | N8: 621 | O8: 329 | P8: 1796 | Q8: 858 | R8: 938 | S8: 2778 | T8: 1383 | U8: 1395 | V8: 3140 | W8: 1873 | X8: 1267
C9: 시각 | D9: 2348 | E9: 1434 | F9: 914 | G9: 309 | H9: 166 | I9: 143 | J9: 57 | K9: 30 | L9: 27 | M9: 109 | N9: 60 | O9: 49 | P9: 97 | Q9: 54 | R9: 43 | S9: 182 | T9: 105 | U9: 77 | V9: 1594 | W9: 1019 | X9: 575
C10: 청각 | D10: 2933 | E10: 1593 | F10: 1340 | G10: 43 | H10: 22 | I10: 21 | J10: 358 | K10: 169 | L10: 189 | M10: 359 | N10: 203 | O10: 156 | P10: 739 | Q10: 409 | R10: 330 | S10: 984 | T10: 545 | U10: 439 | V10: 450 | W10: 245 | X10: 205
C11: 언어 | D11: 179 | E11: 132 | F11: 47 | G11: 0 | H11: 0 | I11: 0 | J11: 23 | K11: 18 | L11: 5 | M11: 68 | N11: 53 | O11: 15 | P11: 88 | Q11: 61 | R11: 27 | S11: 0 | T11: 0 | U11: 0 | V11: 0 | W11: 0 | X11: 0
C12: 지적 | D12: 1737 | E12: 1147 | F12: 590 | G12: 561 | H12: 377 | I12: 184 | J12: 540 | K12: 358 | L12: 182 | M12: 636 | N12: 412 | O12: 224 | P12: 0 | Q12: 0 | R12: 0 | S12: 0 | T12: 0 | U12: 0 | V12: 0 | W12: 0 | X12: 0
C13: 뇌병변 | D13: 2253 | E13: 1380 | F13: 873 | G13: 555 | H13: 346 | I13: 209 | J13: 438 | K13: 239 | L13: 199 | M13: 455 | N13: 278 | O13: 177 | P13: 264 | Q13: 151 | R13: 113 | S13: 260 | T13: 162 | U13: 98 | V13: 281 | W13: 204 | X13: 77
C14: 자폐성 | D14: 288 | E14: 249 | F14: 39 | G14: 88 | H14: 68 | I14: 20 | J14: 140 | K14: 125 | L14: 15 | M14: 60 | N14: 56 | O14: 4 | P14: 0 | Q14: 0 | R14: 0 | S14: 0 | T14: 0 | U14: 0 | V14: 0 | W14: 0 | X14: 0
C15: 정신 | D15: 1121 | E15: 704 | F15: 417 | G15: 31 | H15: 26 | I15: 5 | J15: 365 | K15: 276 | L15: 89 | M15: 725 | N15: 402 | O15: 323 | P15: 0 | Q15: 0 | R15: 0 | S15: 0 | T15: 0 | U15: 0 | V15: 0 | W15: 0 | X15: 0
C16: 신장 | D16: 808 | E16: 479 | F16: 329 | G16: 52 | H16: 33 | I16: 19 | J16: 597 | K16: 356 | L16: 241 | M16: 0 | N16: 0 | O16: 0 | P16: 5 | Q16: 4 | R16: 1 | S16: 154 | T16: 86 | U16: 68 | V16: 0 | W16: 0 | X16: 0
C17: 심장 | D17: 50 | E17: 28 | F17: 22 | G17: 0 | H17: 0 | I17: 0 | J17: 9 | K17: 2 | L17: 7 | M17: 32 | N17: 19 | O17: 13 | P17: 1 | Q17: 1 | R17: 0 | S17: 8 | T17: 6 | U17: 2 | V17: 0 | W17: 0 | X17: 0
C18: 호흡기 | D18: 137 | E18: 98 | F18: 39 | G18: 19 | H18: 11 | I18: 8 | J18: 39 | K18: 29 | L18: 10 | M18: 76 | N18: 58 | O18: 18 | P18: 1 | Q18: 0 | R18: 1 | S18: 2 | T18: 0 | U18: 2 | V18: 0 | W18: 0 | X18: 0
C19: 간 | D19: 132 | E19: 94 | F19: 38 | G19: 4 | H19: 1 | I19: 3 | J19: 1 | K19: 1 | L19: 0 | M19: 5 | N19: 3 | O19: 2 | P19: 4 | Q19: 4 | R19: 0 | S19: 118 | T19: 85 | U19: 33 | V19: 0 | W19: 0 | X19: 0
C20: 안면 | D20: 26 | E20: 15 | F20: 11 | G20: 0 | H20: 0 | I20: 0 | J20: 2 | K20: 2 | L20: 0 | M20: 7 | N20: 3 | O20: 4 | P20: 17 | Q20: 10 | R20: 7 | S20: 0 | T20: 0 | U20: 0 | V20: 0 | W20: 0 | X20: 0
C21: 장루.요루 | D21: 165 | E21: 96 | F21: 69 | G21: 0 | H21: 0 | I21: 0 | J21: 3 | K21: 3 | L21: 0 | M21: 20 | N21: 10 | O21: 10 | P21: 95 | Q21: 58 | R21: 37 | S21: 47 | T21: 25 | U21: 22 | V21: 0 | W21: 0 | X21: 0
C22: 뇌전증 | D22: 62 | E22: 34 | F22: 28 | G22: 0 | H22: 0 | I22: 0 | J22: 1 | K22: 0 | L22: 1 | M22: 7 | N22: 6 | O22: 1 | P22: 40 | Q22: 22 | R22: 18 | S22: 14 | T22: 6 | U22: 8 | V22: 0 | W22: 0 | X22: 0

Sheet 유형별
B1: 은평구 동별 장애인현황(유형별)
AY5: (단위 : 명)
B6: 자치구 | C6: 동 | D6: 합계 | G6: 지체 | J6: 시각 | M6: 청각 | P6: 언어 | S6: 지적 | V6: 뇌병변 | Y6: 자폐성 | AB6: 정신장애 | AE6: 신장장애 | AH6: 심장장애 | AK6: 호흡기 | AN6: 간 | AQ6: 안면 | AT6: 장루,요루 | AW6: 뇌전증
D7: 계 | E7: 남자 | F7: 여자 | G7: 계 | H7: 남자 | I7: 여자 | J7: 계 | K7: 남자 | L7: 여자 | M7: 계 | N7: 남자 | O7: 여자 | P7: 계 | Q7: 남자 | R7: 여자 | S7: 계 | T7: 남자 | U7: 여자 | V7: 계 | W7: 남자 | X7: 여자 | Y7: 계 | Z7: 남자 | AA7: 여자 | AB7: 계 | AC7: 남자 | AD7: 여자 | AE7: 계 | AF7: 남자 | AG7: 여자 | AH7: 계 | AI7: 남자 | AJ7: 여자 | AK7: 계 | AL7: 남자 | AM7: 여자 | AN7: 계 | AO7: 남자 | AP7: 여자 | AQ7: 계 | AR7: 남자 | AS7: 여자 | AT7: 계 | AU7: 남자 | AV7: 여자 | AW7: 계 | AX7: 남자 | AY7: 여자
B8: 은평구 | C8: 합 계 | D8: =SUM(G8,J8,M8,P8,S8,V8,Y8,AB8,AE8,AH8,AK8,AN8,AQ8,AT8,AW8) -> 21524 | E8: =SUM(H8,K8,N8,Q8,T8,W8,Z8,AC8,AF8,AI8,AL8,AO8,AR8,AU8,AX8) -> 12622 | F8: =SUM(I8,L8,O8,R8,U8,X8,AA8,AD8,AG8,AJ8,AM8,AP8,AS8,AV8,AY8) -> 8902 | G8: =SUM(G9:G24) -> 9285 | H8: =SUM(H9:H24) -> 5139 | I8: 4146 | J8: 2348 | K8: 1434 | L8: 914 | M8: 2933 | N8: 1593 | O8: 1340 | P8: 179 | Q8: 132 | R8: 47 | S8: 1737 | T8: 1147 | U8: 590 | V8: 2253 | W8: 1380 | X8: 873 | Y8: 288 | Z8: 249 | AA8: 39 | AB8: 1121 | AC8: 704 | AD8: 417 | AE8: 808 | AF8: 479 | AG8: 329 | AH8: 50 | AI8: 28 | AJ8: 22 | AK8: 137 | AL8: 98 | AM8: 39 | AN8: 132 | AO8: 94 | AP8: 38 | AQ8: 26 | AR8: 15 | AS8: 11 | AT8: 165 | AU8: 96 | AV8: 69 | AW8: 62 | AX8: 34 | AY8: 28
C9: 녹번동 | D9: =SUM(G9,J9,M9,P9,S9,V9,Y9,AB9,AE9,AH9,AK9,AN9,AQ9,AT9,AW9) -> 1520 | E9: =SUM(H9,K9,N9,Q9,T9,W9,Z9,AC9,AF9,AI9,AL9,AO9,AR9,AU9,AX9) -> 884 | F9: =SUM(I9,L9,O9,R9,U9,X9,AA9,AD9,AG9,AJ9,AM9,AP9,AS9,AV9,AY9) -> 636 | G9: 704 | H9: 387 | I9: 317 | J9: 166 | K9: 113 | L9: 53 | M9: 231 | N9: 120 | O9: 111 | P9: 20 | Q9: 12 | R9: 8 | S9: 87 | T9: 61 | U9: 26 | V9: 156 | W9: 91 | X9: 65 | Y9: 15 | Z9: 12 | AA9: 3 | AB9: 46 | AC9: 25 | AD9: 21 | AE9: 59 | AF9: 39 | AG9: 20 | AH9: 1 | AI9: 0 | AJ9: 1 | AK9: 4 | AL9: 2 | AM9: 2 | AN9: 11 | AO9: 8 | AP9: 3 | AQ9: 2 | AR9: 1 | AS9: 1 | AT9: 15 | AU9: 11 | AV9: 4 | AW9: 3 | AX9: 2 | AY9: 1
C10: 불광1동 | D10: 1686 | E10: 937 | F10: 749 | G10: 711 | H10: 375 | I10: 336 | J10: 219 | K10: 127 | L10: 92 | M10: 257 | N10: 143 | O10: 114 | P10: 14 | Q10: 10 | R10: 4 | S10: 95 | T10: 53 | U10: 42 | V10: 178 | W10: 104 | X10: 74 | Y10: 18 | Z10: 17 | AA10: 1 | AB10: 75 | AC10: 39 | AD10: 36 | AE10: 73 | AF10: 43 | AG10: 30 | AH10: 4 | AI10: 4 | AJ10: 0 | AK10: 11 | AL10: 9 | AM10: 2 | AN10: 14 | AO10: 6 | AP10: 8 | AQ10: 1 | AR10: 1 | AS10: 0 | AT10: 14 | AU10: 5 | AV10: 9 | AW10: 2 | AX10: 1 | AY10: 1
C11: 불광2동 | D11: =SUM(G11,J11,M11,P11,S11,V11,Y11,AB11,AE11,AH11,AK11,AN11,AQ11,AT11,AW11) -> 1507 | E11: 875 | F11: 632 | G11: 644 | H11: 368 | I11: 276 | J11: 196 | K11: 121 | L11: 75 | M11: 230 | N11: 126 | O11: 104 | P11: 15 | Q11: 10 | R11: 5 | S11: 115 | T11: 72 | U11: 43 | V11: 146 | W11: 83 | X11: 63 | Y11: 21 | Z11: 20 | AA11: 1 | AB11: 54 | AC11: 23 | AD11: 31 | AE11: 49 | AF11: 30 | AG11: 19 | AH11: 5 | AI11: 3 | AJ11: 2 | AK11: 5 | AL11: 4 | AM11: 1 | AN11: 8 | AO11: 6 | AP11: 2 | AQ11: 2 | AR11: 1 | AS11: 1 | AT11: 7 | AU11: 2 | AV11: 5 | AW11: 10 | AX11: 6 | AY11: 4
C12: 갈현1동 | D12: 1117 | E12: 643 | F12: 474 | G12: 483 | H12: 275 | I12: 208 | J12: 130 | K12: 81 | L12: 49 | M12: 145 | N12: 78 | O12: 67 | P12: 8 | Q12: 5 | R12: 3 | S12: 77 | T12: 45 | U12: 32 | V12: 115 | W12: 73 | X12: 42 | Y12: 9 | Z12: 8 | AA12: 1 | AB12: 73 | AC12: 36 | AD12: 37 | AE12: 51 | AF12: 23 | AG12: 28 | AH12: 2 | AI12: 1 | AJ12: 1 | AK12: 8 | AL12: 5 | AM12: 3 | AN12: 5 | AO12: 5 | AP12: 0 | AQ12: 1 | AR12: 1 | AS12: 0 | AT12: 9 | AU12: 6 | AV12: 3 | AW12: 1 | AX12: 1 | AY12: 0
C13: 갈현2동 | D13: =SUM(G13,J13,M13,P13,S13,V13,Y13,AB13,AE13,AH13,AK13,AN13,AQ13,AT13,AW13) -> 1197 | E13: =SUM(H13,K13,N13,Q13,T13,W13,Z13,AC13,AF13,AI13,AL13,AO13,AR13,AU13,AX13) -> 698 | F13: =SUM(I13,L13,O13,R13,U13,X13,AA13,AD13,AG13,AJ13,AM13,AP13,AS13,AV13,AY13) -> 499 | G13: 546 | H13: 307 | I13: 239 | J13: 136 | K13: 90 | L13: 46 | M13: 159 | N13: 92 | O13: 67 | P13: 13 | Q13: 12 | R13: 1 | S13: 86 | T13: 54 | U13: 32 | V13: 111 | W13: 64 | X13: 47 | Y13: 14 | Z13: 12 | AA13: 2 | AB13: 52 | AC13: 22 | AD13: 30 | AE13: 56 | AF13: 28 | AG13: 28 | AH13: 2 | AI13: 1 | AJ13: 1 | AK13: 6 | AL13: 6 | AM13: 0 | AN13: 7 | AO13: 5 | AP13: 2 | AQ13: 0 | AR13: 0 | AS13: 0 | AT13: 7 | AU13: 4 | AV13: 3 | AW13: 2 | AX13: 1 | AY13: 1
C14: 구산동 | D14: 2294 | E14: 1637 | F14: 657 | G14: 712 | H14: 432 | I14: 280 | J14: 154 | K14: 101 | L14: 53 | M14: 223 | N14: 128 | O14: 95 | P14: 14 | Q14: 10 | R14: 4 | S14: 432 | T14: 336 | U14: 96 | V14: 255 | W14: 196 | X14: 59 | Y14: 31 | Z14: 28 | AA14: 3 | AB14: 331 | AC14: 302 | AD14: 29 | AE14: 64 | AF14: 46 | AG14: 18 | AH14: 3 | AI14: 1 | AJ14: 2 | AK14: 38 | AL14: 29 | AM14: 9 | AN14: 6 | AO14: 5 | AP14: 1 | AQ14: 1 | AR14: 1 | AS14: 0 | AT14: 23 | AU14: 17 | AV14: 6 | AW14: 7 | AX14: 5 | AY14: 2
C15: 대조동 | D15: =SUM(G15,J15,M15,P15,S15,V15,Y15,AB15,AE15,AH15,AK15,AN15,AQ15,AT15,AW15) -> 1440 | E15: 814 | F15: 626 | G15: 650 | H15: 346 | I15: 304 | J15: 158 | K15: 92 | L15: 66 | M15: 208 | N15: 118 | O15: 90 | P15: 14 | Q15: 13 | R15: 1 | S15: 84 | T15: 53 | U15: 31 | V15: 152 | W15: 90 | X15: 62 | Y15: 13 | Z15: 12 | AA15: 1 | AB15: 70 | AC15: 37 | AD15: 33 | AE15: 59 | AF15: 33 | AG15: 26 | AH15: 2 | AI15: 1 | AJ15: 1 | AK15: 6 | AL15: 4 | AM15: 2 | AN15: 8 | AO15: 7 | AP15: 1 | AQ15: 1 | AR15: 1 | AS15: 0 | AT15: 10 | AU15: 5 | AV15: 5 | AW15: 5 | AX15: 2 | AY15: 3
C16: 응암1동 | D16: 1154 | E16: 630 | F16: 524 | G16: 509 | H16: 273 | I16: 236 | J16: 135 | K16: 79 | L16: 56 | M16: 184 | N16: 89 | O16: 95 | P16: 5 | Q16: 4 | R16: 1 | S16: 64 | T16: 34 | U16: 30 | V16: 123 | W16: 79 | X16: 44 | Y16: 13 | Z16: 12 | AA16: 1 | AB16: 52 | AC16: 28 | AD16: 24 | AE16: 44 | AF16: 17 | AG16: 27 | AH16: 3 | AI16: 2 | AJ16: 1 | AK16: 3 | AL16: 3 | AM16: 0 | AN16: 8 | AO16: 4 | AP16: 4 | AQ16: 1 | AR16: 0 | AS16: 1 | AT16: 8 | AU16: 5 | AV16: 3 | AW16: 2 | AX16: 1 | AY16: 1
C17: 응암2동 | D17: 763 | E17: 453 | F17: 310 | G17: 342 | H17: 200 | I17: 142 | J17: 90 | K17: 52 | L17: 38 | M17: 96 | N17: 52 | O17: 44 | P17: 8 | Q17: 7 | R17: 1 | S17: 48 | T17: 31 | U17: 17 | V17: 82 | W17: 48 | X17: 34 | Y17: 18 | Z17: 15 | AA17: 3 | AB17: 32 | AC17: 21 | AD17: 11 | AE17: 25 | AF17: 14 | AG17: 11 | AH17: 1 | AI17: 0 | AJ17: 1 | AK17: 6 | AL17: 4 | AM17: 2 | AN17: 3 | AO17: 2 | AP17: 1 | AQ17: 1 | AR17: 0 | AS17: 1 | AT17: 8 | AU17: 4 | AV17: 4 | AW17: 3 | AX17: 3 | AY17: 0
C18: 응암3동 | D18: 1323 | E18: 767 | F18: 556 | G18: 582 | H18: 325 | I18: 257 | J18: 142 | K18: 85 | L18: 57 | M18: 194 | N18: 109 | O18: 85 | P18: 12 | Q18: 8 | R18: 4 | S18: 88 | T18: 60 | U18: 28 | V18: 136 | W18: 78 | X18: 58 | Y18: 14 | Z18: 11 | AA18: 3 | AB18: 62 | AC18: 34 | AD18: 28 | AE18: 55 | AF18: 38 | AG18: 17 | AH18: 6 | AI18: 3 | AJ18: 3 | AK18: 10 | AL18: 7 | AM18: 3 | AN18: 5 | AO18: 2 | AP18: 3 | AQ18: 3 | AR18: 2 | AS18: 1 | AT18: 9 | AU18: 4 | AV18: 5 | AW18: 5 | AX18: 1 | AY18: 4
C19: 역촌동 | D19: 2128 | E19: 1181 | F19: 947 | G19: 952 | H19: 507 | I19: 445 | J19: 221 | K19: 136 | L19: 85 | M19: 280 | N19: 146 | O19: 134 | P19: 18 | Q19: 12 | R19: 6 | S19: 178 | T19: 104 | U19: 74 | V19: 231 | W19: 133 | X19: 98 | Y19: 26 | Z19: 23 | AA19: 3 | AB19: 92 | AC19: 44 | AD19: 48 | AE19: 81 | AF19: 44 | AG19: 37 | AH19: 5 | AI19: 4 | AJ19: 1 | AK19: 16 | AL19: 10 | AM19: 6 | AN19: 6 | AO19: 4 | AP19: 2 | AQ19: 4 | AR19: 4 | AS19: 0 | AT19: 13 | AU19: 7 | AV19: 6 | AW19: 5 | AX19: 3 | AY19: 2
C20: 신사1동 | D20: 1206 | E20: 715 | F20: 491 | G20: 551 | H20: 317 | I20: 234 | J20: 144 | K20: 83 | L20: 61 | M20: 158 | N20: 91 | O20: 67 | P20: 11 | Q20: 7 | R20: 4 | S20: 108 | T20: 73 | U20: 35 | V20: 113 | W20: 67 | X20: 46 | Y20: 11 | Z20: 6 | AA20: 5 | AB20: 47 | AC20: 28 | AD20: 19 | AE20: 28 | AF20: 24 | AG20: 4 | AH20: 2 | AI20: 2 | AJ20: 0 | AK20: 4 | AL20: 1 | AM20: 3 | AN20: 9 | AO20: 7 | AP20: 2 | AQ20: 4 | AR20: 2 | AS20: 2 | AT20: 11 | AU20: 6 | AV20: 5 | AW20: 5 | AX20: 1 | AY20: 4
C21: 신사2동 | D21: 968 | E21: 566 | F21: 402 | G21: 457 | H21: 259 | I21: 198 | J21: 101 | K21: 64 | L21: 37 | M21: 121 | N21: 67 | O21: 54 | P21: 5 | Q21: 4 | R21: 1 | S21: 80 | T21: 45 | U21: 35 | V21: 84 | W21: 48 | X21: 36 | Y21: 16 | Z21: 14 | AA21: 2 | AB21: 33 | AC21: 16 | AD21: 17 | AE21: 46 | AF21: 32 | AG21: 14 | AH21: 2 | AI21: 1 | AJ21: 1 | AK21: 6 | AL21: 5 | AM21: 1 | AN21: 5 | AO21: 4 | AP21: 1 | AQ21: 0 | AR21: 0 | AS21: 0 | AT21: 8 | AU21: 4 | AV21: 4 | AW21: 4 | AX21: 3 | AY21: 1
C22: 증산동 | D22: 712 | E22: 413 | F22: 299 | G22: 320 | H22: 170 | I22: 150 | J22: 77 | K22: 51 | L22: 26 | M22: 90 | N22: 53 | O22: 37 | P22: 4 | Q22: 3 | R22: 1 | S22: 46 | T22: 30 | U22: 16 | V22: 74 | W22: 45 | X22: 29 | Y22: 11 | Z22: 10 | AA22: 1 | AB22: 28 | AC22: 13 | AD22: 15 | AE22: 37 | AF22: 21 | AG22: 16 | AH22: 1 | AI22: 1 | AJ22: 0 | AK22: 4 | AL22: 3 | AM22: 1 | AN22: 9 | AO22: 7 | AP22: 2 | AQ22: 2 | AR22: 0 | AS22: 2 | AT22: 7 | AU22: 5 | AV22: 2 | AW22: 2 | AX22: 1 | AY22: 1
C23: 수색동 | D23: 608 | E23: 346 | F23: 262 | G23: 270 | H23: 145 | I23: 125 | J23: 75 | K23: 44 | L23: 31 | M23: 78 | N23: 44 | O23: 34 | P23: 5 | Q23: 5 | R23: 0 | S23: 47 | T23: 32 | U23: 15 | V23: 58 | W23: 30 | X23: 28 | Y23: 11 | Z23: 9 | AA23: 2 | AB23: 26 | AC23: 12 | AD23: 14 | AE23: 19 | AF23: 13 | AG23: 6 | AH23: 3 | AI23: 0 | AJ23: 3 | AK23: 4 | AL23: 2 | AM23: 2 | AN23: 6 | AO23: 5 | AP23: 1 | AQ23: 1 | AR23: 1 | AS23: 0 | AT23: 4 | AU23: 3 | AV23: 1 | AW23: 1 | AX23: 1 | AY23: 0
C24: 진관동 | D24: 1901 | E24: 1063 | F24: 838 | G24: 852 | H24: 453 | I24: 399 | J24: 204 | K24: 115 | L24: 89 | M24: 279 | N24: 137 | O24: 142 | P24: 13 | Q24: 10 | R24: 3 | S24: 102 | T24: 64 | U24: 38 | V24: 239 | W24: 151 | X24: 88 | Y24: 47 | Z24: 40 | AA24: 7 | AB24: 48 | AC24: 24 | AD24: 24 | AE24: 62 | AF24: 34 | AG24: 28 | AH24: 8 | AI24: 4 | AJ24: 4 | AK24: 6 | AL24: 4 | AM24: 2 | AN24: 22 | AO24: 17 | AP24: 5 | AQ24: 2 | AR24: 0 | AS24: 2 | AT24: 12 | AU24: 8 | AV24: 4 | AW24: 5 | AX24: 2 | AY24: 3

Sheet 등급별
B2: 은평구 동별 장애인현황(등급별)
W3: (단위 : 명)
B4: 자치구 | C4: 동 | D4: 합계 | G4: 1급 | J4: 2급 | M4: 3급 | P4: 4급 | S4: 5급 | V4: 6급
D5: 계 | E5: 남자 | F5: 여자 | G5: 계 | H5: 남자 | I5: 여자 | J5: 계 | K5: 남자 | L5: 여자 | M5: 계 | N5: 남자 | O5: 여자 | P5: 계 | Q5: 남자 | R5: 여자 | S5: 계 | T5: 남자 | U5: 여자 | V5: 계 | W5: 남자 | X5: 여자
B6: 은평구 | C6: 합 계 | D6: =SUM(G6,J6,M6,P6,S6,V6) -> 21524 | E6: =SUM(H6,K6,N6,Q6,T6,W6) -> 12622 | F6: =SUM(I6,L6,O6,R6,U6,X6) -> 8902 | G6: =SUM(G7:G22) -> 1878 | H6: =SUM(H7:H22) -> 1196 | I6: 682 | J6: 2978 | K6: 1866 | L6: 1112 | M6: 3509 | N6: 2184 | O6: 1325 | P6: 3147 | Q6: 1632 | R6: 1515 | S6: 4547 | T6: 2403 | U6: 2144 | V6: 5465 | W6: 3341 | X6: 2124
C7: 녹번동 | D7: =SUM(G7,J7,M7,P7,S7,V7) -> 1520 | E7: =SUM(H7,K7,N7,Q7,T7,W7) -> 884 | F7: =SUM(I7,L7,O7,R7,U7,X7) -> 636 | G7: 110 | H7: 68 | I7: 42 | J7: 165 | K7: 103 | L7: 62 | M7: 236 | N7: 145 | O7: 91 | P7: 239 | Q7: 130 | R7: 109 | S7: 344 | T7: 166 | U7: 178 | V7: 426 | W7: 272 | X7: 154
C8: 불광1동 | D8: 1686 | E8: 937 | F8: 749 | G8: 133 | H8: 65 | I8: 68 | J8: 219 | K8: 122 | L8: 97 | M8: 256 | N8: 153 | O8: 103 | P8: 247 | Q8: 128 | R8: 119 | S8: 399 | T8: 199 | U8: 200 | V8: 432 | W8: 270 | X8: 162
C9: 불광2동 | D9: 1507 | E9: 875 | F9: 632 | G9: 100 | H9: 53 | I9: 47 | J9: 195 | K9: 117 | L9: 78 | M9: 239 | N9: 150 | O9: 89 | P9: 238 | Q9: 123 | R9: 115 | S9: 313 | T9: 167 | U9: 146 | V9: 422 | W9: 265 | X9: 157
C10: 갈현1동 | D10: 1117 | E10: 643 | F10: 474 | G10: 68 | H10: 42 | I10: 26 | J10: 144 | K10: 84 | L10: 60 | M10: 205 | N10: 117 | O10: 88 | P10: 167 | Q10: 80 | R10: 87 | S10: 235 | T10: 133 | U10: 102 | V10: 298 | W10: 187 | X10: 111
C11: 갈현2동 | D11: 1197 | E11: 698 | F11: 499 | G11: 81 | H11: 45 | I11: 36 | J11: 155 | K11: 82 | L11: 73 | M11: 206 | N11: 130 | O11: 76 | P11: 191 | Q11: 110 | R11: 81 | S11: 258 | T11: 147 | U11: 111 | V11: 306 | W11: 184 | X11: 122
C12: 구산동 | D12: 2294 | E12: 1637 | F12: 657 | G12: 431 | H12: 366 | I12: 65 | J12: 509 | K12: 400 | L12: 109 | M12: 402 | N12: 291 | O12: 111 | P12: 235 | Q12: 151 | R12: 84 | S12: 328 | T12: 196 | U12: 132 | V12: 389 | W12: 233 | X12: 156
C13: 대조동 | D13: 1440 | E13: 814 | F13: 626 | G13: 95 | H13: 54 | I13: 41 | J13: 181 | K13: 111 | L13: 70 | M13: 234 | N13: 144 | O13: 90 | P13: 226 | Q13: 117 | R13: 109 | S13: 318 | T13: 163 | U13: 155 | V13: 386 | W13: 225 | X13: 161
C14: 응암1동 | D14: 1154 | E14: 630 | F14: 524 | G14: 84 | H14: 46 | I14: 38 | J14: 155 | K14: 78 | L14: 77 | M14: 185 | N14: 106 | O14: 79 | P14: 164 | Q14: 79 | R14: 85 | S14: 244 | T14: 132 | U14: 112 | V14: 322 | W14: 189 | X14: 133
C15: 응암2동 | D15: 763 | E15: 453 | F15: 310 | G15: 55 | H15: 34 | I15: 21 | J15: 105 | K15: 69 | L15: 36 | M15: 126 | N15: 81 | O15: 45 | P15: 117 | Q15: 64 | R15: 53 | S15: 170 | T15: 98 | U15: 72 | V15: 190 | W15: 107 | X15: 83
C16: 응암3동 | D16: 1323 | E16: 767 | F16: 556 | G16: 87 | H16: 51 | I16: 36 | J16: 159 | K16: 101 | L16: 58 | M16: 206 | N16: 135 | O16: 71 | P16: 209 | Q16: 117 | R16: 92 | S16: 320 | T16: 153 | U16: 167 | V16: 342 | W16: 210 | X16: 132
C17: 역촌동 | D17: 2128 | E17: 1181 | F17: 947 | G17: 170 | H17: 88 | I17: 82 | J17: 284 | K17: 167 | L17: 117 | M17: 353 | N17: 204 | O17: 149 | P17: 342 | Q17: 167 | R17: 175 | S17: 440 | T17: 219 | U17: 221 | V17: 539 | W17: 336 | X17: 203
C18: 신사1동 | D18: 1206 | E18: 715 | F18: 491 | G18: 100 | H18: 54 | I18: 46 | J18: 149 | K18: 98 | L18: 51 | M18: 178 | N18: 124 | O18: 54 | P18: 180 | Q18: 85 | R18: 95 | S18: 257 | T18: 146 | U18: 111 | V18: 342 | W18: 208 | X18: 134
C19: 신사2동 | D19: 968 | E19: 566 | F19: 402 | G19: 70 | H19: 42 | I19: 28 | J19: 143 | K19: 87 | L19: 56 | M19: 149 | N19: 93 | O19: 56 | P19: 147 | Q19: 69 | R19: 78 | S19: 219 | T19: 120 | U19: 99 | V19: 240 | W19: 155 | X19: 85
C20: 증산동 | D20: 712 | E20: 413 | F20: 299 | G20: 52 | H20: 35 | I20: 17 | J20: 103 | K20: 66 | L20: 37 | M20: 111 | N20: 64 | O20: 47 | P20: 107 | Q20: 57 | R20: 50 | S20: 151 | T20: 72 | U20: 79 | V20: 188 | W20: 119 | X20: 69
C21: 수색동 | D21: 608 | E21: 346 | F21: 262 | G21: 45 | H21: 30 | I21: 15 | J21: 89 | K21: 53 | L21: 36 | M21: 94 | N21: 52 | O21: 42 | P21: 86 | Q21: 43 | R21: 43 | S21: 136 | T21: 73 | U21: 63 | V21: 158 | W21: 95 | X21: 63
C22: 진관동 | D22: 1901 | E22: 1063 | F22: 838 | G22: 197 | H22: 123 | I22: 74 | J22: 223 | K22: 128 | L22: 95 | M22: 329 | N22: 195 | O22: 134 | P22: 252 | Q22: 112 | R22: 140 | S22: 415 | T22: 219 | U22: 196 | V22: 485 | W22: 286 | X22: 199

Sheet 연령별
B2: 은평구 동별 장애인현황(연령별)
AF4: (단위 : 명)
B5: 자치구 | C5: 동 | D5: 합계 | G5: 9세이하 | J5: 10~19세 | M5: 20~29세 | P5: 30~39세 | S5: 40~49세 | V5: 50~59세 | Y5: 60~69세 | AB5: 70~79세 | AE5: 80세이상
D6: 계 | E6: 남자 | F6: 여자 | G6: 계 | H6: 남자 | I6: 여자 | J6: 계 | K6: 남자 | L6: 여자 | M6: 계 | N6: 남자 | O6: 여자 | P6: 계 | Q6: 남자 | R6: 여자 | S6: 계 | T6: 남자 | U6: 여자 | V6: 계 | W6: 남자 | X6: 여자 | Y6: 계 | Z6: 남자 | AA6: 여자 | AB6: 계 | AC6: 남자 | AD6: 여자 | AE6: 계 | AF6: 남자 | AG6: 여자
B7: 은평구 | C7: 합 계 | D7: =SUM(G7,J7,M7,P7,S7,V7,Y7,AB7,AE7) -> 21524 | E7: =SUM(H7,K7,N7,Q7,T7,W7,Z7,AC7,AF7) -> 12622 | F7: =D7-E7 -> 8902 | G7: =SUM(G8:G23) -> 270 | H7: =SUM(H8:H23) -> 172 | I7: 98 | J7: 564 | K7: 366 | L7: 198 | M7: 845 | N7: 547 | O7: 298 | P7: 1133 | Q7: 773 | R7: 360 | S7: 2205 | T7: 1573 | U7: 632 | V7: 3762 | W7: 2596 | X7: 1171 | Y7: 4694 | Z7: 2821 | AA7: 1873 | AB7: 5172 | AC7: 2621 | AD7: 2551 | AE7: 2879 | AF7: 1153 | AG7: 1726
C8: 녹번동 | D8: =SUM(G8,J8,M8,P8,S8,V8,Y8,AB8,AE8) -> 1520 | E8: =SUM(H8,K8,N8,Q8,T8,W8,Z8,AC8,AF8) -> 884 | F8: =D8-E8 -> 636 | G8: 13 | H8: 7 | I8: =G8-H8 -> 6 | J8: 28 | K8: 20 | L8: =J8-K8 -> 8 | M8: 61 | N8: 33 | O8: =M8-N8 -> 28 | P8: 59 | Q8: 42 | R8: =P8-Q8 -> 17 | S8: 140 | T8: 101 | U8: =S8-T8 -> 39 | V8: 266 | W8: 205 | X8: =V8-W8 -> 61 | Y8: 331 | Z8: 200 | AA8: =Y8-Z8 -> 131 | AB8: 408 | AC8: 198 | AD8: =AB8-AC8 -> 210 | AE8: 214 | AF8: 78 | AG8: =AE8-AF8 -> 136
C9: 불광1동 | D9: 1686 | E9: 937 | F9: =D9-E9 -> 749 | G9: 16 | H9: 11 | I9: =G9-H9 -> 5 | J9: 38 | K9: 22 | L9: =J9-K9 -> 16 | M9: 53 | N9: 36 | O9: =M9-N9 -> 17 | P9: 95 | Q9: 64 | R9: =P9-Q9 -> 31 | S9: 158 | T9: 107 | U9: =S9-T9 -> 51 | V9: 248 | W9: 153 | X9: =V9-W9 -> 95 | Y9: 359 | Z9: 213 | AA9: =Y9-Z9 -> 146 | AB9: 428 | AC9: 202 | AD9: =AB9-AC9 -> 226 | AE9: 291 | AF9: 129 | AG9: =AE9-AF9 -> 162
C10: 불광2동 | D10: 1507 | E10: 875 | F10: 632 | G10: 14 | H10: 9 | I10: 5 | J10: 38 | K10: 32 | L10: =J10-K10 -> 6 | M10: 64 | N10: 45 | O10: 19 | P10: 63 | Q10: 43 | R10: 20 | S10: 141 | T10: 90 | U10: 51 | V10: 271 | W10: 182 | X10: 94 | Y10: 358 | Z10: 206 | AA10: 152 | AB10: 344 | AC10: 180 | AD10: 164 | AE10: 214 | AF10: 88 | AG10: 126
C11: 갈현1동 | D11: 1117 | E11: 643 | F11: 474 | G11: 11 | H11: 9 | I11: 2 | J11: 23 | K11: 14 | L11: 9 | M11: 45 | N11: 26 | O11: 19 | P11: 51 | Q11: 32 | R11: 19 | S11: 122 | T11: 85 | U11: 37 | V11: 221 | W11: 148 | X11: 73 | Y11: 254 | Z11: 149 | AA11: 105 | AB11: 250 | AC11: 124 | AD11: 126 | AE11: 140 | AF11: 56 | AG11: 84
C12: 갈현2동 | D12: 1197 | E12: 698 | F12: 499 | G12: 14 | H12: 11 | I12: 3 | J12: 26 | K12: 18 | L12: 8 | M12: 57 | N12: 33 | O12: 24 | P12: 53 | Q12: 39 | R12: 14 | S12: 128 | T12: 79 | U12: 49 | V12: 227 | W12: 162 | X12: 65 | Y12: 244 | Z12: 143 | AA12: 101 | AB12: 294 | AC12: 151 | AD12: 143 | AE12: 154 | AF12: 62 | AG12: 92
C13: 구산동 | D13: 2294 | E13: 1637 | F13: 657 | G13: 23 | H13: 9 | I13: 14 | J13: 85 | K13: 42 | L13: 43 | M13: 96 | N13: 68 | O13: 28 | P13: 130 | Q13: 99 | R13: 31 | S13: 303 | T13: 261 | U13: 42 | V13: 507 | W13: 412 | X13: 95 | Y13: 503 | Z13: 382 | AA13: 121 | AB13: 432 | AC13: 265 | AD13: 167 | AE13: 215 | AF13: 99 | AG13: 116
C14: 대조동 | D14: 1440 | E14: 814 | F14: 626 | G14: 17 | H14: 11 | I14: 6 | J14: 24 | K14: 16 | L14: 8 | M14: 62 | N14: 40 | O14: 22 | P14: 79 | Q14: 51 | R14: 28 | S14: 147 | T14: 97 | U14: 50 | V14: 251 | W14: 160 | X14: 91 | Y14: 310 | Z14: 187 | AA14: 123 | AB14: 357 | AC14: 182 | AD14: 175 | AE14: 193 | AF14: 70 | AG14: 123
C15: 응암1동 | D15: 1154 | E15: 630 | F15: 524 | G15: 20 | H15: 10 | I15: 10 | J15: 34 | K15: 19 | L15: 15 | M15: 42 | N15: 23 | O15: 19 | P15: 74 | Q15: 55 | R15: 19 | S15: 111 | T15: 81 | U15: 30 | V15: 179 | W15: 122 | X15: 57 | Y15: 245 | Z15: 129 | AA15: 116 | AB15: 283 | AC15: 136 | AD15: 147 | AE15: 166 | AF15: 55 | AG15: 111
C16: 응암2동 | D16: 763 | E16: 453 | F16: 310 | G16: 25 | H16: 18 | I16: 7 | J16: 25 | K16: 13 | L16: 12 | M16: 26 | N16: 19 | O16: 7 | P16: 31 | Q16: 23 | R16: 8 | S16: 84 | T16: 67 | U16: 17 | V16: 116 | W16: 78 | X16: 38 | Y16: 175 | Z16: 107 | AA16: 68 | AB16: 184 | AC16: 81 | AD16: 103 | AE16: 97 | AF16: 47 | AG16: 50
C17: 응암3동 | D17: 1323 | E17: 767 | F17: 556 | G17: 8 | H17: 5 | I17: 3 | J17: 30 | K17: 20 | L17: 10 | M17: 35 | N17: 27 | O17: 8 | P17: 72 | Q17: 51 | R17: 21 | S17: 120 | T17: 82 | U17: 38 | V17: 230 | W17: 154 | X17: 76 | Y17: 286 | Z17: 171 | AA17: 115 | AB17: 349 | AC17: 176 | AD17: 173 | AE17: 193 | AF17: 81 | AG17: 112
C18: 역촌동 | D18: 2128 | E18: 1181 | F18: 947 | G18: 28 | H18: 18 | I18: 10 | J18: 60 | K18: 43 | L18: 17 | M18: 85 | N18: 56 | O18: 29 | P18: 136 | Q18: 89 | R18: 47 | S18: 213 | T18: 143 | U18: 70 | V18: 368 | W18: 230 | X18: 138 | Y18: 489 | Z18: 270 | AA18: 219 | AB18: 501 | AC18: 250 | AD18: 251 | AE18: 248 | AF18: 82 | AG18: 166
C19: 신사1동 | D19: 1206 | E19: 715 | F19: 491 | G19: 16 | H19: 10 | I19: 6 | J19: 29 | K19: 17 | L19: 12 | M19: 56 | N19: 37 | O19: 19 | P19: 73 | Q19: 49 | R19: 24 | S19: 137 | T19: 101 | U19: 36 | V19: 221 | W19: 147 | X19: 74 | Y19: 234 | Z19: 137 | AA19: 97 | AB19: 298 | AC19: 157 | AD19: 141 | AE19: 142 | AF19: 60 | AG19: 82
C20: 신사2동 | D20: 968 | E20: 566 | F20: 402 | G20: 17 | H20: 14 | I20: 3 | J20: 28 | K20: 16 | L20: 12 | M20: 41 | N20: 23 | O20: 18 | P20: 51 | Q20: 34 | R20: 17 | S20: 80 | T20: 55 | U20: 25 | V20: 172 | W20: 120 | X20: 52 | Y20: 216 | Z20: 136 | AA20: 80 | AB20: 240 | AC20: 119 | AD20: 121 | AE20: 123 | AF20: 49 | AG20: 74
C21: 증산동 | D21: 712 | E21: 413 | F21: 299 | G21: 10 | H21: 7 | I21: 3 | J21: 13 | K21: 11 | L21: 2 | M21: 28 | N21: 18 | O21: 10 | P21: 33 | Q21: 21 | R21: 12 | S21: 66 | T21: 46 | U21: 20 | V21: 126 | W21: 77 | X21: 49 | Y21: 163 | Z21: 96 | AA21: 67 | AB21: 182 | AC21: 98 | AD21: 84 | AE21: 91 | AF21: 39 | AG21: 52
C22: 수색동 | D22: 608 | E22: 346 | F22: 262 | G22: 3 | H22: 2 | I22: 1 | J22: 14 | K22: 11 | L22: 3 | M22: 26 | N22: 17 | O22: 9 | P22: 29 | Q22: 18 | R22: 11 | S22: 44 | T22: 34 | U22: 10 | V22: 92 | W22: 71 | X22: 21 | Y22: 144 | Z22: 84 | AA22: 60 | AB22: 170 | AC22: 75 | AD22: 95 | AE22: 86 | AF22: 34 | AG22: 52
C23: 진관동 | D23: 1901 | E23: 1063 | F23: 838 | G23: 35 | H23: 21 | I23: 14 | J23: 69 | K23: 52 | L23: 17 | M23: 68 | N23: 46 | O23: 22 | P23: 104 | Q23: 63 | R23: 41 | S23: 211 | T23: 144 | U23: 67 | V23: 267 | W23: 175 | X23: =V23-W23 -> 92 | Y23: 383 | Z23: 211 | AA23: 172 | AB23: 452 | AC23: 227 | AD23: 225 | AE23: 312 | AF23: 124 | AG23: 188
